{"text_format":"1","workbook":"xlsx","n_sheets":3,"sheets":["Bewertungstabelle BNB_BK","BNB-System","Gültigkeitslisten"],"not_rendered":{"charts":0,"images":0,"macros":1,"external_links":0,"defined_names":8,"comments":0,"pivot_tables":0},"unopened":[],"bounds":{"document_bytes":16777216,"sheet_cells":100000,"rows_first":2000,"rows_last":500,"rows_between":2000,"halvings":0,"cell_chars":16384,"cell_head_chars":4096},"cells_cut":0,"cells_raw":0,"read":"whole","date_system":"1900"}

{"sheet":"Bewertungstabelle BNB_BK","index":0,"n_rows":244,"n_cols":12,"rows_kept":244,"cut":false,"hidden":false,"merged":[[3,5,3,6],[3,4,5,4],[4,7,5,7],[2,11,2,12],[6,11,6,12],[3,11,5,12],[3,7,3,9],[3,10,5,10]]}
[null,"Projektnummer",null,null,"Projektname"]
[null,"Bewertungssystem Nachhaltiges Bauen (BNB) - Systemvariante Büro- und Verwaltungsgebäude"]
[null,"BNB-Modul Komplettmodernisierung (BNB_BK) - Version 2013_3",null,null,null,null,null,null,null,null,"Stand:"]
[null,"Nachhaltigkeitskriterien",null,null,"max-imale Punkt-zahl","Zielwert",null,"Bewertung\n",null,null,"Gewich-tung\nGesamtbe-wertung","Gesamt-bewertung"]
[null,null,null,null,null,"Soll","Punkt-","Punkt-zahl\n","Qualität","Bemerkung"]
[null,null,null,null,null,null,"zahl"]
[null,"BNB-Modul Komplettmodernisierung",null,null,null,null,null,null,null,"Gesamterfüllungsgrad",null,{"$f":"L9+L34+L41+L137+L167","v":0}]
[]
[null,null,{"$f":"'BNB-System'!B10","v":"Ökologische Qualität"},null,null,null,null,null,null,null,{"$f":"K12+K13+K14+K15+K16+K17+K21+K23+K24+K28+K29","v":0.22499999999999998},{"$f":"(L12+L13+L14+L15+L16+L17+L21+L23+L24+L28+L29)","v":0}]
[]
[null,null,null,{"$f":"'BNB-System'!C12","v":"Wirkungen auf die globale und lokale  Umwelt"}]
[null,{"$f":"'BNB-System'!B13","v":"BK"},{"$f":"'BNB-System'!C13","v":" 1.1.1"},{"$f":"'BNB-System'!D13","v":"Treibhauspotenzial (GWP)"},{"$f":"'BNB-System'!E13","v":100},null,null,null,null,null,{"$f":"'BNB-System'!G13","v":3.3750000000000002E-2},{"$f":"IF(ISNUMBER(H12*'BNB-System'!G13/100),H12*'BNB-System'!G13/100,0)","v":0}]
[null,{"$f":"'BNB-System'!B14","v":"BK"},{"$f":"'BNB-System'!C14","v":" 1.1.2"},{"$f":"'BNB-System'!D14","v":"Ozonschichtabbaupotenzial (ODP)"},{"$f":"'BNB-System'!E14","v":100},null,null,null,null,null,{"$f":"'BNB-System'!G14","v":1.1250000000000001E-2},{"$f":"IF(ISNUMBER(H13*'BNB-System'!G14/100),H13*'BNB-System'!G14/100,0)","v":0}]
[null,{"$f":"'BNB-System'!B15","v":"BK"},{"$f":"'BNB-System'!C15","v":" 1.1.3"},{"$f":"'BNB-System'!D15","v":"Ozonbildungspotenzial (POCP)"},{"$f":"'BNB-System'!E15","v":100},null,null,null,null,null,{"$f":"'BNB-System'!G15","v":1.1250000000000001E-2},{"$f":"IF(ISNUMBER(H14*'BNB-System'!G15/100),H14*'BNB-System'!G15/100,0)","v":0}]
[null,{"$f":"'BNB-System'!B16","v":"BK"},{"$f":"'BNB-System'!C16","v":" 1.1.4"},{"$f":"'BNB-System'!D16","v":"Versauerungspotenzial (AP)"},{"$f":"'BNB-System'!E16","v":100},null,null,null,null,null,{"$f":"'BNB-System'!G16","v":1.1250000000000001E-2},{"$f":"IF(ISNUMBER(H15*'BNB-System'!G16/100),H15*'BNB-System'!G16/100,0)","v":0}]
[null,{"$f":"'BNB-System'!B17","v":"BK"},{"$f":"'BNB-System'!C17","v":" 1.1.5"},{"$f":"'BNB-System'!D17","v":"Überdüngungspotenzial (EP)"},{"$f":"'BNB-System'!E17","v":100},null,null,null,null,null,{"$f":"'BNB-System'!G17","v":1.1250000000000001E-2},{"$f":"IF(ISNUMBER(H16*'BNB-System'!G17/100),H16*'BNB-System'!G17/100,0)","v":0}]
[null,{"$f":"'BNB-System'!B18","v":"BK"},{"$f":"'BNB-System'!C18","v":" 1.1.6"},{"$f":"'BNB-System'!D18","v":"Risiken für die lokale Umwelt"},{"$f":"'BNB-System'!E18","v":100},null,null,{"$f":"IF(AND(ISNUMBER($H18),$H18>=0),H18,IF(SUM(H19:H20)>100,100,SUM(H19:H20)))","v":0},null,null,{"$f":"'BNB-System'!G18","v":3.3750000000000002E-2},{"$f":"IF(ISNUMBER(H17*'BNB-System'!G18/100),H17*'BNB-System'!G18/100,0)","v":0}]
[null,null,null,"pauschale Bewertung des Kriteriums:"]
[null,null,null,{"$f":"'BNB-System'!D19","v":"Risiken aus der Neusubstanz"},{"$f":"'BNB-System'!E19","v":50}]
[null,null,null,{"$f":"'BNB-System'!D20","v":"Risiken aus der Altsubstanz"},{"$f":"'BNB-System'!E20","v":50}]
[null,{"$f":"'BNB-System'!B21","v":"BK"},{"$f":"'BNB-System'!C21","v":" 1.1.7"},{"$f":"'BNB-System'!D21","v":"Nachhaltige Materialgewinnung / Holz"},{"$f":"'BNB-System'!E21","v":100},null,null,null,null,null,{"$f":"'BNB-System'!G21","v":1.1250000000000001E-2},{"$f":"IF(ISNUMBER(H21*'BNB-System'!G21/100),H21*'BNB-System'!G21/100,0)","v":0}]
[null,null,null,{"$f":"'BNB-System'!C22","v":"Ressourceninanspruchnahme"}]
[null,{"$f":"'BNB-System'!B23","v":"BK"},{"$f":"'BNB-System'!C23","v":" 1.2.1"},{"$f":"'BNB-System'!D23","v":"Primärenergiebedarf nicht erneuerbar (PEne)"},{"$f":"'BNB-System'!E23","v":100},null,null,null,null,null,{"$f":"'BNB-System'!G23","v":3.3750000000000002E-2},{"$f":"IF(ISNUMBER(H23*'BNB-System'!G23/100),H23*'BNB-System'!G23/100,0)","v":0}]
[null,{"$f":"'BNB-System'!B24","v":"BK"},{"$f":"'BNB-System'!C24","v":" 1.2.2"},{"$f":"'BNB-System'!D24","v":"Gesamtprimärenergiebedarf (PEges) u. Anteil erneuerbare Primärenergie (PEe)"},{"$f":"'BNB-System'!E24","v":100},null,null,{"$f":"IF(AND(ISNUMBER($H25),$H25>=0),H25,IF(SUM(H26:H27)>100,100,SUM(H26:H27)))","v":0},null,null,{"$f":"'BNB-System'!G24","v":2.2500000000000003E-2},{"$f":"IF(ISNUMBER(H24*'BNB-System'!G24/100),H24*'BNB-System'!G24/100,0)","v":0}]
[null,null,null,"pauschale Bewertung des Kriteriums:"]
[null,null,null,{"$f":"'BNB-System'!D25","v":"Gesamtenergiebedarf"},{"$f":"'BNB-System'!E25","v":100}]
[null,null,null,{"$f":"'BNB-System'!D26","v":"Anteil erneuerbarer Primärenergie"},{"$f":"'BNB-System'!E26","v":50}]
[null,{"$f":"'BNB-System'!B27","v":"BN_2011"},{"$f":"'BNB-System'!C27","v":"1.2.3"},{"$f":"'BNB-System'!D27","v":"Trinkwasserbedarf und Abwasseraufkommen"},{"$f":"'BNB-System'!E27","v":100},null,null,null,null,null,{"$f":"'BNB-System'!G27","v":2.2500000000000003E-2},{"$f":"IF(ISNUMBER(H28*'BNB-System'!G27/100),H28*'BNB-System'!G27/100,0)","v":0}]
[null,{"$f":"'BNB-System'!B28","v":"BK"},{"$f":"'BNB-System'!C28","v":" 1.2.4"},{"$f":"'BNB-System'!D28","v":"Flächeninanspruchnahme"},{"$f":"'BNB-System'!E28","v":100},null,null,{"$f":"IF(AND(ISNUMBER($H30),$H30>=0),H30,IF(SUM(H31:H32)>100,100,SUM(H31:H32)))","v":0},null,null,{"$f":"'BNB-System'!G28","v":2.2500000000000003E-2},{"$f":"IF(ISNUMBER(H29*'BNB-System'!G28/100),H29*'BNB-System'!G28/100,0)","v":0}]
[null,null,null,"pauschale Bewertung des Kriteriums:"]
[null,null,null,{"$f":"'BNB-System'!D29","v":"Veränderung der Flächeninanspruchnahme "},{"$f":"'BNB-System'!E29","v":100}]
[null,null,null,{"$f":"'BNB-System'!D30","v":"Ausgleichsmaßnahmen und Flächenrecycling"},{"$f":"'BNB-System'!E30","v":40}]
[]
[null,null,{"$f":"'BNB-System'!B32","v":"Ökonomische Qualität"},null,null,null,null,null,null,null,{"$f":"K37+K39","v":0.22500000000000003},{"$f":"(L37+L39)","v":0}]
[]
[null,null,null,{"$f":"'BNB-System'!C34","v":"Lebenszykluskosten"}]
[null,{"$f":"'BNB-System'!B35","v":"BK"},{"$f":"'BNB-System'!C35","v":" 2.1.1"},{"$f":"'BNB-System'!D35","v":"Gebäudebezogene Kosten im Lebenszyklus"},{"$f":"'BNB-System'!E35","v":100},null,null,null,null,null,{"$f":"'BNB-System'!G35","v":0.13500000000000001},{"$f":"IF(ISNUMBER(H37*'BNB-System'!G35/100),H37*'BNB-System'!G35/100,0)","v":0}]
[null,null,null,{"$f":"'BNB-System'!C36","v":"Wertentwicklung"}]
[null,{"$f":"'BNB-System'!B37","v":"BN_2011"},{"$f":"'BNB-System'!C37","v":" 2.2.1"},{"$f":"'BNB-System'!D37","v":"Drittverwendungsfähigkeit"},{"$f":"'BNB-System'!E37","v":100},null,null,null,null,null,{"$f":"'BNB-System'!G37","v":9.0000000000000011E-2},{"$f":"IF(ISNUMBER(H39*'BNB-System'!G37/100),H39*'BNB-System'!G37/100,0)","v":0}]
[]
[null,null,{"$f":"'BNB-System'!B39","v":"Soziokulturelle und funktionale Qualität"},null,null,null,null,null,null,null,{"$f":"K44+K50+K56+K60+K70+K79+K89+K93+K98+K99+K100+K108+K115+K120+K130","v":0.22499999999999998},{"$f":"(L44+L50+L56+L60+L70+L79+L89+L93+L98+L99+L100+L108+L115+L120+L130)","v":0}]
[]
[null,null,null,{"$f":"'BNB-System'!C41","v":"Gesundheit, Behaglichkeit und Nutzerzufriedenheit"}]
[null,{"$f":"'BNB-System'!B42","v":"BN_2011"},{"$f":"'BNB-System'!C42","v":" 3.1.1"},{"$f":"'BNB-System'!D42","v":"Thermischer Komfort im Winter"},{"$f":"'BNB-System'!E42","v":100},null,null,{"$f":"IF(AND(ISNUMBER($H45),$H45>=0),H45,IF(SUM(H46:H49)>100,100,SUM(H46:H49)))","v":0},null,null,{"$f":"'BNB-System'!G42","v":1.607142857142857E-2},{"$f":"IF(ISNUMBER(H44*'BNB-System'!G42/100),H44*'BNB-System'!G42/100,0)","v":0}]
[null,null,null,"pauschale Bewertung des Kriteriums:"]
[null,null,null,{"$f":"'BNB-System'!D43","v":"Operative Temperatur"},{"$f":"'BNB-System'!E43","v":70}]
[null,null,null,{"$f":"'BNB-System'!D44","v":"Zugluft"},{"$f":"'BNB-System'!E44","v":10}]
[null,null,null,{"$f":"'BNB-System'!D45","v":"Stahlungstemperaturasymmetrie und Fußbodentemperatur"},{"$f":"'BNB-System'!E45","v":10}]
[null,null,null,{"$f":"'BNB-System'!D46","v":"Relative Luftfeuchte"},{"$f":"'BNB-System'!E46","v":10}]
[null,{"$f":"'BNB-System'!B47","v":"BN_2011"},{"$f":"'BNB-System'!C47","v":" 3.1.2"},{"$f":"'BNB-System'!D47","v":"Thermischer Komfort im Sommer"},{"$f":"'BNB-System'!E47","v":100},null,null,{"$f":"IF(AND(ISNUMBER($H51),$H51>=0),H51,IF(SUM(H52:H55)>100,100,SUM(H52:H55)))","v":0},null,null,{"$f":"'BNB-System'!G47","v":2.4107142857142855E-2},{"$f":"IF(ISNUMBER(H50*'BNB-System'!G47/100),H50*'BNB-System'!G47/100,0)","v":0}]
[null,null,null,"pauschale Bewertung des Kriteriums:"]
[null,null,null,{"$f":"'BNB-System'!D48","v":"Operative Temperatur"},{"$f":"'BNB-System'!E48","v":70}]
[null,null,null,{"$f":"'BNB-System'!D49","v":"Zugluft"},{"$f":"'BNB-System'!E49","v":10}]
[null,null,null,{"$f":"'BNB-System'!D50","v":"Stahlungstemperaturasymmetrie und Fußbodentemperatur"},{"$f":"'BNB-System'!E50","v":10}]
[null,null,null,{"$f":"'BNB-System'!D51","v":"Relative Luftfeuchte"},{"$f":"'BNB-System'!E51","v":10}]
[null,{"$f":"'BNB-System'!B52","v":"BN_2011"},{"$f":"'BNB-System'!C52","v":"3.1.3"},{"$f":"'BNB-System'!D52","v":"Innenraumhygiene"},{"$f":"'BNB-System'!E52","v":100},null,null,{"$f":"IF(AND(ISNUMBER($H57),$H57>=0),H57,IF(SUM(H58:H59)>100,100,SUM(H58:H59)))","v":0},null,null,{"$f":"'BNB-System'!G52","v":2.4107142857142855E-2},{"$f":"IF(ISNUMBER(H56*'BNB-System'!G52/100),H56*'BNB-System'!G52/100,0)","v":0}]
[null,null,null,"pauschale Bewertung des Kriteriums:"]
[null,null,null,{"$f":"'BNB-System'!D53","v":"Flüchtige organische Stoffe (VOC) und Formaldehyd"},{"$f":"'BNB-System'!E53","v":50}]
[null,null,null,{"$f":"'BNB-System'!D54","v":"Personenbezogene Lüftungsrate"},{"$f":"'BNB-System'!E54","v":50}]
[null,{"$f":"'BNB-System'!B55","v":"BN_2011"},{"$f":"'BNB-System'!C55","v":" 3.1.4"},{"$f":"'BNB-System'!D55","v":"Akustischer Komfort"},{"$f":"'BNB-System'!E55","v":100},null,null,{"$f":"IF(AND(ISNUMBER($H61),$H61>=0),H61,IF(IF(ISNUMBER(ROUND(H63/(H63+H65+H67+H69)*H62+H65/(H63+H65+H67+H69)*H64+H67/(H63+H65+H67+H69)*H66+H69/(H63+H65+H67+H69)*H68,1)),ROUND(H63/(H63+H65+H67+H69)*H62+H65/(H63+H65+H67+H69)*H64+H67/(H63+H65+H67+H69)*H66+H69/(H63+H65+H67+H69)*H68,1),0)>100,100,IF(ISNUMBER(ROUND(H63/(H63+H65+H67+H69)*H62+H65/(H63+H65+H67+H69)*H64+H67/(H63+H65+H67+H69)*H66+H69/(H63+H65+H67+H69)*H68,1)),ROUND(H63/(H63+H65+H67+H69)*H62+H65/(H63+H65+H67+H69)*H64+H67/(H63+H65+H67+H69)*H66+H69/(H63+H65+H67+H69)*H68,1),0)))","v":0},null,null,{"$f":"'BNB-System'!G55","v":8.0357142857142849E-3},{"$f":"IF(ISNUMBER(H60*'BNB-System'!G55/100),H60*'BNB-System'!G55/100,0)","v":0}]
[null,null,null,"pauschale Bewertung des Kriteriums:"]
[null,null,null,{"$f":"'BNB-System'!D56","v":"Einzel- und Mehrpersonenbüros bis 40 m²"},{"$f":"'BNB-System'!E56","v":100}]
[null,null,null,{"$f":"'BNB-System'!D57","v":"NF Einzel- und Mehrpersonenbüros bis 40 m² "}]
[null,null,null,{"$f":"'BNB-System'!D58","v":"Mehrpersonenbüros"},{"$f":"'BNB-System'!E58","v":100}]
[null,null,null,{"$f":"'BNB-System'!D59","v":"NF Mehrpersonenbüros"}]
[null,null,null,{"$f":"'BNB-System'!D60","v":"Besprechungsräume"},{"$f":"'BNB-System'!E60","v":100}]
[null,null,null,{"$f":"'BNB-System'!D61","v":"NF Besprechungsräume"}]
[null,null,null,{"$f":"'BNB-System'!D62","v":"Kantinen über 50 m²"},{"$f":"'BNB-System'!E62","v":100}]
[null,null,null,{"$f":"'BNB-System'!D63","v":"NF Kantinen über 50 m²"}]
[null,{"$f":"'BNB-System'!B64","v":"BN_2011"},{"$f":"'BNB-System'!C64","v":" 3.1.5"},{"$f":"'BNB-System'!D64","v":"Visueller Komfort"},{"$f":"'BNB-System'!E64","v":100},null,null,{"$f":"IF(AND(ISNUMBER($H71),$H71>=0),H71,IF(SUM(H72:H78)>100,100,SUM(H72:H78)))","v":0},null,null,{"$f":"'BNB-System'!G64","v":2.4107142857142855E-2},{"$f":"IF(ISNUMBER(H70*'BNB-System'!G64/100),H70*'BNB-System'!G64/100,0)","v":0}]
[null,null,null,"pauschale Bewertung des Kriteriums:"]
[null,null,null,{"$f":"'BNB-System'!D65","v":"Tageslichtverfügbarkeit Gesamtgebäude"},{"$f":"'BNB-System'!E65","v":15}]
[null,null,null,{"$f":"'BNB-System'!D66","v":"Tageslichtverfügbarkeit ständige Arbeitsplätze"},{"$f":"'BNB-System'!E66","v":15}]
[null,null,null,{"$f":"'BNB-System'!D67","v":"Nachweis de Sichtverbindung außen"},{"$f":"'BNB-System'!E67","v":15}]
[null,null,null,{"$f":"'BNB-System'!D68","v":"Blendfreiheit Tageslicht"},{"$f":"'BNB-System'!E68","v":15}]
[null,null,null,{"$f":"'BNB-System'!D69","v":"Blendfreiheit  Kunstlicht"},{"$f":"'BNB-System'!E69","v":10}]
[null,null,null,{"$f":"'BNB-System'!D70","v":"Lichtverteilung"},{"$f":"'BNB-System'!E70","v":15}]
[null,null,null,{"$f":"'BNB-System'!D71","v":"Farbwiedergabe"},{"$f":"'BNB-System'!E71","v":15}]
[null,{"$f":"'BNB-System'!B72","v":"BN_2011"},{"$f":"'BNB-System'!C72","v":" 3.1.6"},{"$f":"'BNB-System'!D72","v":"Einflussnahme des Nutzers"},{"$f":"'BNB-System'!E72","v":100},null,null,{"$f":"IF(AND(ISNUMBER($H80),$H80>=0),H80,IF(SUM(H81:H88)>100,100,SUM(H81:H88)))","v":0},null,null,{"$f":"'BNB-System'!G72","v":1.607142857142857E-2},{"$f":"IF(ISNUMBER(H79*'BNB-System'!G72/100),H79*'BNB-System'!G72/100,0)","v":0}]
[null,null,null,"pauschale Bewertung des Kriteriums:"]
[null,null,null,{"$f":"'BNB-System'!D73","v":"Lüftung"},{"$f":"'BNB-System'!E73","v":10}]
[null,null,null,{"$f":"'BNB-System'!D74","v":"Sonnenschutz"},{"$f":"'BNB-System'!E74","v":10}]
[null,null,null,{"$f":"'BNB-System'!D75","v":"Blendschutz"},{"$f":"'BNB-System'!E75","v":10}]
[null,null,null,{"$f":"'BNB-System'!D76","v":"Temperaturen während der Heizperiode"},{"$f":"'BNB-System'!E76","v":10}]
[null,null,null,{"$f":"'BNB-System'!D77","v":"Temperaturen außerhalb der Heizperiode"},{"$f":"'BNB-System'!E77","v":15}]
[null,null,null,{"$f":"'BNB-System'!D78","v":"Steuerung von Tageslicht"},{"$f":"'BNB-System'!E78","v":15}]
[null,null,null,{"$f":"'BNB-System'!D79","v":"Steuerung von  Kunstlicht"},{"$f":"'BNB-System'!E79","v":15}]
[null,null,null,{"$f":"'BNB-System'!D80","v":"Bedienfreundlichkeit"},{"$f":"'BNB-System'!E80","v":15}]
[null,{"$f":"'BNB-System'!B81","v":"BN_2011"},{"$f":"'BNB-System'!C81","v":" 3.1.7"},{"$f":"'BNB-System'!D81","v":"Aufenthaltsmerkmale im Außenraum"},{"$f":"'BNB-System'!E81","v":100},null,null,{"$f":"IF(AND(ISNUMBER($H90),$H90>=0),H90,IF(SUM(H91:H92)>100,100,SUM(H91:H92)))","v":0},null,null,{"$f":"'BNB-System'!G81","v":8.0357142857142849E-3},{"$f":"IF(ISNUMBER(H89*'BNB-System'!G81/100),H89*'BNB-System'!G81/100,0)","v":0}]
[null,null,null,"pauschale Bewertung des Kriteriums:"]
[null,null,null,{"$f":"'BNB-System'!D82","v":"Anzahl der Sitzmöglichkeiten im Außenbereich"},{"$f":"'BNB-System'!E82","v":40}]
[null,null,null,{"$f":"'BNB-System'!D83","v":" Ausstattungsmerkmale"},{"$f":"'BNB-System'!E83","v":100}]
[null,{"$f":"'BNB-System'!B84","v":"BN_2011"},{"$f":"'BNB-System'!C84","v":" 3.1.8"},{"$f":"'BNB-System'!D84","v":"Sicherheit und Störfallrisiken"},{"$f":"'BNB-System'!E84","v":100},null,null,{"$f":"IF(AND(ISNUMBER($H94),$H94>=0),H94,IF(SUM(H95:H96)>100,100,SUM(H95:H96)))","v":0},null,null,{"$f":"'BNB-System'!G84","v":8.0357142857142849E-3},{"$f":"IF(ISNUMBER(H93*'BNB-System'!G84/100),H93*'BNB-System'!G84/100,0)","v":0}]
[null,null,null,"pauschale Bewertung des Kriteriums:"]
[null,null,null,{"$f":"'BNB-System'!D85","v":"Subjektives Sicherheitsempfinden und Schutz vor Übergriffen"},{"$f":"'BNB-System'!E85","v":50}]
[null,null,null,{"$f":"'BNB-System'!D86","v":"Reduktion des Schadensausmaßes im Fall von Schadensereignissen"},{"$f":"'BNB-System'!E86","v":50}]
[null,null,null,{"$f":"'BNB-System'!C87","v":"Funktionalität"}]
[null,{"$f":"'BNB-System'!B88","v":"BN_2011"},{"$f":"'BNB-System'!C88","v":" 3.2.1"},{"$f":"'BNB-System'!D88","v":"Barrierefreiheit"},{"$f":"'BNB-System'!E88","v":100},null,null,null,null,null,{"$f":"'BNB-System'!G88","v":1.607142857142857E-2},{"$f":"IF(ISNUMBER(H98*'BNB-System'!G88/100),H98*'BNB-System'!G88/100,0)","v":0}]
[null,{"$f":"'BNB-System'!B89","v":"BN_2011"},{"$f":"'BNB-System'!C89","v":" 3.2.2"},{"$f":"'BNB-System'!D89","v":"Flächeneffizienz"},{"$f":"'BNB-System'!E89","v":100},null,null,null,null,null,{"$f":"'BNB-System'!G89","v":8.0357142857142849E-3},{"$f":"IF(ISNUMBER(H99*'BNB-System'!G89/100),H99*'BNB-System'!G89/100,0)","v":0}]
[null,{"$f":"'BNB-System'!B90","v":"BK"},{"$f":"'BNB-System'!C90","v":" 3.2.3"},{"$f":"'BNB-System'!D90","v":"Umnutzungsfähigkeit"},{"$f":"'BNB-System'!E90","v":100},null,null,{"$f":"IF(AND(ISNUMBER($H101),$H101>=0),H101,IF(SUM(H102:H107)>100,100,SUM(H102:H107)))","v":0},null,null,{"$f":"'BNB-System'!G90","v":1.607142857142857E-2},{"$f":"IF(ISNUMBER(H100*'BNB-System'!G90/100),H100*'BNB-System'!G90/100,0)","v":0}]
[null,null,null,"pauschale Bewertung des Kriteriums:"]
[null,null,null,{"$f":"'BNB-System'!D91","v":"Lichte Raumhöhe"},{"$f":"'BNB-System'!E91","v":15}]
[null,null,null,{"$f":"'BNB-System'!D92","v":"Gebäudetiefe"},{"$f":"'BNB-System'!E92","v":15}]
[null,null,null,{"$f":"'BNB-System'!D93","v":"Vertikale Erschließung"},{"$f":"'BNB-System'!E93","v":15}]
[null,null,null,{"$f":"'BNB-System'!D94","v":"Grundrisse"},{"$f":"'BNB-System'!E94","v":25}]
[null,null,null,{"$f":"'BNB-System'!D95","v":"Konstruktion"},{"$f":"'BNB-System'!E95","v":20}]
[null,null,null,{"$f":"'BNB-System'!D96","v":"Technische Ausstattung"},{"$f":"'BNB-System'!E96","v":10}]
[null,{"$f":"'BNB-System'!B97","v":"BN_2011"},{"$f":"'BNB-System'!C97","v":" 3.2.4"},{"$f":"'BNB-System'!D97","v":"Zugänglichkeit"},{"$f":"'BNB-System'!E97","v":100},null,null,{"$f":"IF(AND(ISNUMBER($H109),$H109>=0),H109,IF(SUM(H110:H114)>100,100,SUM(H110:H114)))","v":0},null,null,{"$f":"'BNB-System'!G97","v":1.607142857142857E-2},{"$f":"IF(ISNUMBER(H108*'BNB-System'!G97/100),H108*'BNB-System'!G97/100,0)","v":0}]
[null,null,null,"pauschale Bewertung des Kriteriums:"]
[null,null,null,{"$f":"'BNB-System'!D98","v":"Grundsätzliche Zugänglichkeit des Gebäudes"},{"$f":"'BNB-System'!E98","v":25}]
[null,null,null,{"$f":"'BNB-System'!D99","v":"Öffnung der Außenanlagen für die Öffentlichkeit"},{"$f":"'BNB-System'!E99","v":25}]
[null,null,null,{"$f":"'BNB-System'!D100","v":"Öffnung gebäudeinterner Einrichtungen für die Öffentlichkeit"},{"$f":"'BNB-System'!E100","v":25}]
[null,null,null,{"$f":"'BNB-System'!D101","v":"Möglichkeit der Anmietung von Räumlichkeiten "},{"$f":"'BNB-System'!E101","v":15}]
[null,null,null,{"$f":"'BNB-System'!D102","v":"Nutzungsvielfalt der öffentlich zugänglichen Bereiche"},{"$f":"'BNB-System'!E102","v":10}]
[null,{"$f":"'BNB-System'!B103","v":"BN_2011"},{"$f":"'BNB-System'!C103","v":" 3.2.5"},{"$f":"'BNB-System'!D103","v":"Fahrradkomfort"},{"$f":"'BNB-System'!E103","v":100},null,null,{"$f":"IF(AND(ISNUMBER($H116),$H116>=0),H116,IF(SUM(H117:H118)>100,100,SUM(H117:H118)))","v":0},null,null,{"$f":"'BNB-System'!G103","v":8.0357142857142849E-3},{"$f":"IF(ISNUMBER(H115*'BNB-System'!G103/100),H115*'BNB-System'!G103/100,0)","v":0}]
[null,null,null,"pauschale Bewertung des Kriteriums:"]
[null,null,null,{"$f":"'BNB-System'!D104","v":"Anzahl der Fahrradstellplätze"},{"$f":"'BNB-System'!E104","v":50}]
[null,null,null,{"$f":"'BNB-System'!D105","v":"Qualitative Anfoorderungen"},{"$f":"'BNB-System'!E105","v":50}]
[null,null,null,{"$f":"'BNB-System'!C106","v":"Sicherung der Gestaltungsqualität"}]
[null,{"$f":"'BNB-System'!B107","v":"BK"},{"$f":"'BNB-System'!C107","v":" 3.3.1"},{"$f":"'BNB-System'!D107","v":"Gestalterische und städtebauliche Qualität"},{"$f":"'BNB-System'!E107","v":100},null,null,{"$f":"IF(AND(ISNUMBER($H121),$H121>=0),H121,IF(SUM(H122:H129)>100,100,SUM(H122:H129)))","v":0},null,null,{"$f":"'BNB-System'!G107","v":2.4107142857142855E-2},{"$f":"IF(ISNUMBER(H120*'BNB-System'!G107/100),H120*'BNB-System'!G107/100,0)","v":0}]
[null,null,null,"pauschale Bewertung des Kriteriums:"]
[null,null,null,{"$f":"'BNB-System'!D108","v":"Fortentwicklung der gestalterischen und städtebaulichen Qualität des Bestandsgebäudes"},{"$f":"'BNB-System'!E108","v":40}]
[null,null,null,{"$f":"'BNB-System'!D109","v":"Wettbewerbsverfahren"},{"$f":"'BNB-System'!E109","v":35}]
[null,null,null,{"$f":"'BNB-System'!D110","v":"Ausführung des Entwurfs eines der Preisträger"},{"$f":"'BNB-System'!E110","v":20}]
[null,null,null,{"$f":"'BNB-System'!D111","v":"Beauftragung des Planungsteams"},{"$f":"'BNB-System'!E111","v":5}]
[null,null,null,{"$f":"'BNB-System'!D112","v":"Auszeichnung mit einem Architekturpreis"},{"$f":"'BNB-System'!E112","v":60}]
[null,null,null,{"$f":"'BNB-System'!D113","v":"Unabhängiges Expertengremium"},{"$f":"'BNB-System'!E113","v":40}]
[null,null,null,{"$f":"'BNB-System'!D114","v":"Sonderfall Mindestanforderung"},{"$f":"'BNB-System'!E114","v":5}]
[null,null,null,{"$f":"'BNB-System'!D115","v":"Denkmalpflege und Denkmalschutz"},{"$f":"'BNB-System'!E115","v":100}]
[null,{"$f":"'BNB-System'!B116","v":"BK"},{"$f":"'BNB-System'!C116","v":" 3.3.2"},{"$f":"'BNB-System'!D116","v":"Kunst am Bau "},{"$f":"'BNB-System'!E116","v":100},null,null,{"$f":"IF(AND(ISNUMBER($H131),$H131>=0),H131,IF(SUM(H132:H135)>100,100,SUM(H132:H135)))","v":0},null,null,{"$f":"'BNB-System'!G116","v":8.0357142857142849E-3},{"$f":"IF(ISNUMBER(H130*'BNB-System'!G116/100),H130*'BNB-System'!G116/100,0)","v":0}]
[null,null,null,"pauschale Bewertung des Kriteriums:"]
[null,null,null,{"$f":"'BNB-System'!D117","v":"Mindestanforderung"},{"$f":"'BNB-System'!E117","v":10}]
[null,null,null,{"$f":"'BNB-System'!D118","v":"Bereitstellung von Mitteln im Rahmen der Bauaufgabe"},{"$f":"'BNB-System'!E118","v":30}]
[null,null,null,{"$f":"'BNB-System'!D119","v":"Umsetzung des BMVBS-Leitfadens Kunst am Bau"},{"$f":"'BNB-System'!E119","v":40}]
[null,null,null,{"$f":"'BNB-System'!D120","v":"Öffentlichkeitsarbeit, Rezeption  der Kunst am Bau"},{"$f":"'BNB-System'!E120","v":20}]
[]
[null,null,{"$f":"'BNB-System'!B122","v":"Technische Qualität"},null,null,null,null,null,null,null,{"$f":"K140+K146+K154+K165","v":0.22500000000000001},{"$f":"(L140+L146+L154+L165)","v":0}]
[]
[null,null,null,{"$f":"'BNB-System'!C124","v":"technische Ausführung"}]
[null,{"$f":"'BNB-System'!B125","v":"BN_2011"},{"$f":"'BNB-System'!C125","v":" 4.1.1"},{"$f":"'BNB-System'!D125","v":"Schallschutz "},{"$f":"'BNB-System'!E125","v":100},null,null,{"$f":"IF(AND(ISNUMBER($H141),$H141>=0),H141,IF(SUM(H142:H145)>100,100,SUM(H142:H145)))","v":0},null,null,{"$f":"'BNB-System'!G125","v":5.6250000000000001E-2},{"$f":"IF(ISNUMBER(H140*'BNB-System'!G125/100),H140*'BNB-System'!G125/100,0)","v":0}]
[null,null,null,"pauschale Bewertung des Kriteriums:"]
[null,null,null,{"$f":"'BNB-System'!D126","v":"Luftschallschutz gegen Außenlärm"},{"$f":"'BNB-System'!E126","v":20}]
[null,null,null,{"$f":"'BNB-System'!D127","v":"Luftschallschutz gegenüber fremden Arbeitsräumen und eigenen Arbeitsbereichen"},{"$f":"'BNB-System'!E127","v":30}]
[null,null,null,{"$f":"'BNB-System'!D128","v":"Trittschallschutz gegenüber fremden Arbeitsräumen und eigenen Arbeitsbereichen"},{"$f":"'BNB-System'!E128","v":30}]
[null,null,null,{"$f":"'BNB-System'!D129","v":"Schallschutz gegenüber haustechnischen Anlagen"},{"$f":"'BNB-System'!E129","v":20}]
[null,{"$f":"'BNB-System'!B130","v":"BK"},{"$f":"'BNB-System'!C130","v":" 4.1.2"},{"$f":"'BNB-System'!D130","v":"Wärme- und Tauwasserschutz "},{"$f":"'BNB-System'!E130","v":100},null,null,{"$f":"IF(AND(ISNUMBER($H147),$H147>=0),H147,IF(SUM(H148:H153)>100,100,SUM(H148:H153)))","v":0},null,null,{"$f":"'BNB-System'!G130","v":5.6250000000000001E-2},{"$f":"IF(ISNUMBER(H146*'BNB-System'!G130/100),H146*'BNB-System'!G130/100,0)","v":0}]
[null,null,null,"pauschale Bewertung des Kriteriums:"]
[null,null,null,{"$f":"'BNB-System'!D131","v":"Mittlere Wärmeduchgangskoeffizienten"},{"$f":"'BNB-System'!E131","v":30}]
[null,null,null,{"$f":"'BNB-System'!D132","v":"Wärmebrückenzuschlag"},{"$f":"'BNB-System'!E132","v":15}]
[null,null,null,{"$f":"'BNB-System'!D133","v":"Klassen der Luftdurchlässigkeit (Fugendurchlässigkeit)"},{"$f":"'BNB-System'!E133","v":15}]
[null,null,null,{"$f":"'BNB-System'!D134","v":"Tauwasserbildung"},{"$f":"'BNB-System'!E134","v":10}]
[null,null,null,{"$f":"'BNB-System'!D135","v":"Luftwechsel"},{"$f":"'BNB-System'!E135","v":15}]
[null,null,null,{"$f":"'BNB-System'!D136","v":"Sonneneintragswert"},{"$f":"'BNB-System'!E136","v":15}]
[null,{"$f":"'BNB-System'!B137","v":"BN_2011"},{"$f":"'BNB-System'!C137","v":" 4.1.3"},{"$f":"'BNB-System'!D137","v":"Reinigung und Instandhaltung"},{"$f":"'BNB-System'!E137","v":100},null,null,{"$f":"IF(AND(ISNUMBER($H155),$H155>=0),H155,IF(SUM(H156:H164)>100,100,SUM(H156:H164)))","v":0},null,null,{"$f":"'BNB-System'!G137","v":5.6250000000000001E-2},{"$f":"IF(ISNUMBER(H154*'BNB-System'!G137/100),H154*'BNB-System'!G137/100,0)","v":0}]
[null,null,null,"pauschale Bewertung des Kriteriums:"]
[null,null,null,{"$f":"'BNB-System'!D138","v":"Tragkonstruktion"},{"$f":"'BNB-System'!E138","v":15}]
[null,null,null,{"$f":"'BNB-System'!D139","v":"Zugänglichkeit der Außenglasflächen"},{"$f":"'BNB-System'!E139","v":15}]
[null,null,null,{"$f":"'BNB-System'!D140","v":"Außenbauteile"},{"$f":"'BNB-System'!E140","v":9}]
[null,null,null,{"$f":"'BNB-System'!D141","v":"Bodenbelag"},{"$f":"'BNB-System'!E141","v":9}]
[null,null,null,{"$f":"'BNB-System'!D142","v":"Schmutzfangzone"},{"$f":"'BNB-System'!E142","v":9}]
[null,null,null,{"$f":"'BNB-System'!D143","v":"Fußbodenleisten"},{"$f":"'BNB-System'!E143","v":9}]
[null,null,null,{"$f":"'BNB-System'!D144","v":"Hindernisfreie Grundrissgestaltung"},{"$f":"'BNB-System'!E144","v":9}]
[null,null,null,{"$f":"'BNB-System'!D145","v":"Einbauten"},{"$f":"'BNB-System'!E145","v":10}]
[null,null,null,{"$f":"'BNB-System'!D146","v":"Zugänglichkeit der Innenglasflächen "},{"$f":"'BNB-System'!E146","v":15}]
[null,{"$f":"'BNB-System'!B147","v":"BN_2011"},{"$f":"'BNB-System'!C147","v":" 4.1.4"},{"$f":"'BNB-System'!D147","v":"Rückbau, Trennung und Verwertung"},{"$f":"'BNB-System'!E147","v":100},null,null,null,null,null,{"$f":"'BNB-System'!G147","v":5.6250000000000001E-2},{"$f":"IF(ISNUMBER(H165*'BNB-System'!G147/100),H165*'BNB-System'!G147/100,0)","v":0}]
[]
[null,null,{"$f":"'BNB-System'!B149","v":"Prozessqualität"},null,null,null,null,null,null,null,{"$f":"K170+K175+K182+K198+K199+K205+K216+K223+K229+K233","v":0.1},{"$f":"(L170+L175+L182+L198+L199+L205+L216+L223+L229+L233)","v":0}]
[]
[null,null,null,{"$f":"'BNB-System'!C151","v":"Planung"}]
[null,{"$f":"'BNB-System'!B152","v":"BN_2011"},{"$f":"'BNB-System'!C152","v":" 5.1.1"},{"$f":"'BNB-System'!D152","v":"Projektvorbereitung"},{"$f":"'BNB-System'!E152","v":100},null,null,{"$f":"IF(AND(ISNUMBER($H171),$H171>=0),H171,IF(SUM(H172:H174)>100,100,SUM(H172:H174)))","v":0},null,null,{"$f":"'BNB-System'!G152","v":1.2E-2},{"$f":"IF(ISNUMBER(H170*'BNB-System'!G152/100),H170*'BNB-System'!G152/100,0)","v":0}]
[null,null,null,"pauschale Bewertung des Kriteriums:"]
[null,null,null,{"$f":"'BNB-System'!D153","v":"Bedarfsplanung oder vergleichbare Planung"},{"$f":"'BNB-System'!E153","v":35}]
[null,null,null,{"$f":"'BNB-System'!D154","v":"Zielvereinbarung"},{"$f":"'BNB-System'!E154","v":35}]
[null,null,null,{"$f":"'BNB-System'!D155","v":"Architektenwettbewerb"},{"$f":"'BNB-System'!E155","v":30}]
[null,{"$f":"'BNB-System'!B156","v":"BN_2011"},{"$f":"'BNB-System'!C156","v":" 5.1.2"},{"$f":"'BNB-System'!D156","v":"Integrale Planung"},{"$f":"'BNB-System'!E156","v":100},null,null,{"$f":"IF(AND(ISNUMBER($H176),$H176>=0),H176,IF(SUM(H177:H181)>100,100,SUM(H177:H181)))","v":0},null,null,{"$f":"'BNB-System'!G156","v":1.2E-2},{"$f":"IF(ISNUMBER(H175*'BNB-System'!G156/100),H175*'BNB-System'!G156/100,0)","v":0}]
[null,null,null,"pauschale Bewertung des Kriteriums:"]
[null,null,null,{"$f":"'BNB-System'!D157","v":"Integrales Planungsteam"},{"$f":"'BNB-System'!E157","v":30}]
[null,null,null,{"$f":"'BNB-System'!D158","v":"Qualifikation des Planungsteams"},{"$f":"'BNB-System'!E158","v":20}]
[null,null,null,{"$f":"'BNB-System'!D159","v":"Integraler Planungsprozess"},{"$f":"'BNB-System'!E159","v":20}]
[null,null,null,{"$f":"'BNB-System'!D160","v":"Nutzerbeteiligung"},{"$f":"'BNB-System'!E160","v":20}]
[null,null,null,{"$f":"'BNB-System'!D161","v":"Öffentlichkeitsbeteiligung"},{"$f":"'BNB-System'!E161","v":10}]
[null,{"$f":"'BNB-System'!B162","v":"BK"},{"$f":"'BNB-System'!C162","v":" 5.1.3"},{"$f":"'BNB-System'!D162","v":"Komplexität und Optimierung der Planung"},{"$f":"'BNB-System'!E162","v":100},null,null,{"$f":"IF(AND(ISNUMBER($H183),$H183>=0),H183,IF(SUM(H184:H197)>100,100,SUM(H184:H197)))","v":0},null,null,{"$f":"'BNB-System'!G162","v":1.2E-2},{"$f":"IF(ISNUMBER(H182*'BNB-System'!G162/100),H182*'BNB-System'!G162/100,0)","v":0}]
[null,null,null,"pauschale Bewertung des Kriteriums:"]
[null,null,null,{"$f":"'BNB-System'!D163","v":"SiGe-Plan"},{"$f":"'BNB-System'!E163","v":10}]
[null,null,null,{"$f":"'BNB-System'!D164","v":"Energiekonzept"},{"$f":"'BNB-System'!E164","v":10}]
[null,null,null,{"$f":"'BNB-System'!D165","v":"Messkonzept"},{"$f":"'BNB-System'!E165","v":10}]
[null,null,null,{"$f":"'BNB-System'!D166","v":"Wasserkonzept"},{"$f":"'BNB-System'!E166","v":10}]
[null,null,null,{"$f":"'BNB-System'!D167","v":"Ver- und Entsiegelungskonzept"},{"$f":"'BNB-System'!E167","v":10}]
[null,null,null,{"$f":"'BNB-System'!D168","v":"Abfallkonzept"},{"$f":"'BNB-System'!E168","v":5}]
[null,null,null,{"$f":"'BNB-System'!D169","v":"Konzept zur Vermeidung von Umwelt- und Gesundheitsrisiken aus Bauprodukten"},{"$f":"'BNB-System'!E169","v":10}]
[null,null,null,{"$f":"'BNB-System'!D170","v":"Lüftungskonzept"},{"$f":"'BNB-System'!E170","v":10}]
[null,null,null,{"$f":"'BNB-System'!D171","v":"Tages- / Kunstlichtoptimierung"},{"$f":"'BNB-System'!E171","v":10}]
[null,null,null,{"$f":"'BNB-System'!D172","v":"Konzept zur Sicherung der Reinigungs- und Instandhaltungsfreundlichkeit"},{"$f":"'BNB-System'!E172","v":10}]
[null,null,null,{"$f":"'BNB-System'!D173","v":"Konzept zur Unterstützung der Umbaubarkeit, Rückbaubarkeit und Recyclingfreundlichkeit"},{"$f":"'BNB-System'!E173","v":10}]
[null,null,null,{"$f":"'BNB-System'!D174","v":"Sonstige Konzepte zum Nachhaltigen Bauen"},{"$f":"'BNB-System'!E174","v":20}]
[null,null,null,{"$f":"'BNB-System'!D175","v":"Prüfung der Planungsunterlagen durch unabhängige Dritte"},{"$f":"'BNB-System'!E175","v":5}]
[null,null,null,{"$f":"'BNB-System'!D176","v":"Durchführung von Variantenvergleichen"},{"$f":"'BNB-System'!E176","v":10}]
[null,{"$f":"'BNB-System'!B177","v":"BN_2011"},{"$f":"'BNB-System'!C177","v":" 5.1.4"},{"$f":"'BNB-System'!D177","v":"Ausschreibung und Vergabe"},{"$f":"'BNB-System'!E177","v":100},null,null,null,null,null,{"$f":"'BNB-System'!G177","v":8.0000000000000002E-3},{"$f":"IF(ISNUMBER(H198*'BNB-System'!G177/100),H198*'BNB-System'!G177/100,0)","v":0}]
[null,{"$f":"'BNB-System'!B178","v":"BN_2011"},{"$f":"'BNB-System'!C178","v":" 5.1.5"},{"$f":"'BNB-System'!D178","v":"Vorraussetzungen für eine optimale Bewirtschaftung"},{"$f":"'BNB-System'!E178","v":100},null,null,{"$f":"IF(AND(ISNUMBER($H200),$H200>=0),H200,IF(SUM(H201:H204)>100,100,SUM(H201:H204)))","v":0},null,null,{"$f":"'BNB-System'!G178","v":8.0000000000000002E-3},{"$f":"IF(ISNUMBER(H199*'BNB-System'!G178/100),H199*'BNB-System'!G178/100,0)","v":0}]
[null,null,null,"pauschale Bewertung des Kriteriums:"]
[null,null,null,{"$f":"'BNB-System'!D179","v":"Erstellung einer Objektdokumentation / Gebäudepass"},{"$f":"'BNB-System'!E179","v":25}]
[null,null,null,{"$f":"'BNB-System'!D180","v":"Erstellung von Wartungs-, Inspektions-, Betriebs-, und Pflegeanleitungen"},{"$f":"'BNB-System'!E180","v":25}]
[null,null,null,{"$f":"'BNB-System'!D181","v":"Anpassung der Pläne und Berechnungen an das realisierte Gebäude"},{"$f":"'BNB-System'!E181","v":25}]
[null,null,null,{"$f":"'BNB-System'!D182","v":"Erstellung eines Nutzerhandbuches"},{"$f":"'BNB-System'!E182","v":25}]
[null,{"$f":"'BNB-System'!B183","v":"BK"},{"$f":"'BNB-System'!C183","v":" 5.1.6"},{"$f":"'BNB-System'!D183","v":"Bestandsanalyse"},{"$f":"'BNB-System'!E183","v":100},null,null,{"$f":"IF(AND(ISNUMBER($H206),$H206>=0),H206,IF(SUM(H207:H215)>100,100,SUM(H207:H215)))","v":0},null,null,{"$f":"'BNB-System'!G183","v":1.2E-2},{"$f":"IF(ISNUMBER(H205*'BNB-System'!G183/100),H205*'BNB-System'!G183/100,0)","v":0}]
[null,null,null,"pauschale Bewertung des Kriteriums:"]
[null,null,null,{"$f":"'BNB-System'!D184","v":"Bestandsaufnahme Geometrie"},{"$f":"'BNB-System'!E184","v":10}]
[null,null,null,{"$f":"'BNB-System'!D185","v":"Bestandsaufnahme Baukonstruktion und Baustoffe"},{"$f":"'BNB-System'!E185","v":20}]
[null,null,null,{"$f":"'BNB-System'!D186","v":"Bestandsaufnahme Haustechnik"},{"$f":"'BNB-System'!E186","v":10}]
[null,null,null,{"$f":"'BNB-System'!D187","v":"Bestandsaufnahme Bau- und Nutzungsgeschichte"},{"$f":"'BNB-System'!E187","v":5}]
[null,null,null,{"$f":"'BNB-System'!D188","v":"Bestandsaufnahme Exposition"},{"$f":"'BNB-System'!E188","v":5}]
[null,null,null,{"$f":"'BNB-System'!D189","v":"Baudiagnose Tragwerk"},{"$f":"'BNB-System'!E189","v":15}]
[null,null,null,{"$f":"'BNB-System'!D190","v":"Baudiagnose Energetische Qualität"},{"$f":"'BNB-System'!E190","v":15}]
[null,null,null,{"$f":"'BNB-System'!D191","v":"Baudiagnose Schadstoffe"},{"$f":"'BNB-System'!E191","v":10}]
[null,null,null,{"$f":"'BNB-System'!D192","v":"Baudiagnose Feuchte- und Salzbelastungen"},{"$f":"'BNB-System'!E192","v":10}]
[null,{"$f":"'BNB-System'!B193","v":"BK"},{"$f":"'BNB-System'!C193","v":" 5.1.7"},{"$f":"'BNB-System'!D193","v":"Rückbaumaßnahmen"},{"$f":"'BNB-System'!E193","v":100},null,null,{"$f":"IF(AND(ISNUMBER($H217),$H217>=0),H217,IF(SUM(H218:H221)>100,100,SUM(H218:H221)))","v":0},null,null,{"$f":"'BNB-System'!G193","v":4.0000000000000001E-3},{"$f":"IF(ISNUMBER(H216*'BNB-System'!G193/100),H216*'BNB-System'!G193/100,0)","v":0}]
[null,null,null,"pauschale Bewertung des Kriteriums:"]
[null,null,null,{"$f":"'BNB-System'!D194","v":"Technische Arbeitsschutzbedingungen"},{"$f":"'BNB-System'!E194","v":25}]
[null,null,null,{"$f":"'BNB-System'!D195","v":"Planung des Rückbaus"},{"$f":"'BNB-System'!E195","v":25}]
[null,null,null,{"$f":"'BNB-System'!D196","v":"Selektiver Rückbau"},{"$f":"'BNB-System'!E196","v":25}]
[null,null,null,{"$f":"'BNB-System'!D197","v":"Prüfen auf Abfalltrennung und Entsorgung"},{"$f":"'BNB-System'!E197","v":25}]
[null,null,null,{"$f":"'BNB-System'!C198","v":"Bauausführung"}]
[null,{"$f":"'BNB-System'!B199","v":"BN_2011"},{"$f":"'BNB-System'!C199","v":" 5.2.1"},{"$f":"'BNB-System'!D199","v":"Baustelle / Bauprozess"},{"$f":"'BNB-System'!E199","v":100},null,null,{"$f":"IF(AND(ISNUMBER($H224),$H224>=0),H224,IF(SUM(H225:H228)>100,100,SUM(H225:H228)))","v":0},null,null,{"$f":"'BNB-System'!G199","v":8.0000000000000002E-3},{"$f":"IF(ISNUMBER(H223*'BNB-System'!G199/100),H223*'BNB-System'!G199/100,0)","v":0}]
[null,null,null,"pauschale Bewertung des Kriteriums:"]
[null,null,null,{"$f":"'BNB-System'!D200","v":"Abfallarme Baustelle"},{"$f":"'BNB-System'!E200","v":25}]
[null,null,null,{"$f":"'BNB-System'!D201","v":"Lärmarme Baustelle"},{"$f":"'BNB-System'!E201","v":25}]
[null,null,null,{"$f":"'BNB-System'!D202","v":"Staubarme Baustelle"},{"$f":"'BNB-System'!E202","v":25}]
[null,null,null,{"$f":"'BNB-System'!D203","v":"Bodenschutz auf der Baustelle"},{"$f":"'BNB-System'!E203","v":25}]
[null,{"$f":"'BNB-System'!B204","v":"BN_2011"},{"$f":"'BNB-System'!C204","v":" 5.2.2"},{"$f":"'BNB-System'!D204","v":"Qualitätssicherung der Bauausführung"},{"$f":"'BNB-System'!E204","v":100},null,null,{"$f":"IF(AND(ISNUMBER($H230),$H230>=0),H230,IF(SUM(H231:H232)>100,100,SUM(H231:H232)))","v":0},null,null,{"$f":"'BNB-System'!G204","v":1.2E-2},{"$f":"IF(ISNUMBER(H229*'BNB-System'!G204/100),H229*'BNB-System'!G204/100,0)","v":0}]
[null,null,null,"pauschale Bewertung des Kriteriums:"]
[null,null,null,{"$f":"'BNB-System'!D205","v":"Dokumentation der verwendeten Materialien, Hilfsstoffe und Sicherheitsdatenblätter"},{"$f":"'BNB-System'!E205","v":50}]
[null,null,null,{"$f":"'BNB-System'!D206","v":"Messungen zur Qualitätskontrolle"},{"$f":"'BNB-System'!E206","v":50}]
[null,{"$f":"'BNB-System'!B207","v":"BN_2011"},{"$f":"'BNB-System'!C207","v":" 5.2.3"},{"$f":"'BNB-System'!D207","v":"Systematische Inbetriebnahme"},{"$f":"'BNB-System'!E207","v":100},null,null,null,null,null,{"$f":"'BNB-System'!G207","v":1.2E-2},{"$f":"IF(ISNUMBER(H233*'BNB-System'!G207/100),H233*'BNB-System'!G207/100,0)","v":0}]
[]
[]
[null,null,{"$f":"'BNB-System'!B210","v":"Standortmerkmale"},null,null,null,null,null,null,null,null,{"$f":"L239+L240+L241+L242+L243+L244","v":0}]
[]
[null,null,null,{"$f":"'BNB-System'!C212","v":"Standortmerkmale"}]
[null,{"$f":"'BNB-System'!B213","v":"BN_2011"},{"$f":"'BNB-System'!C213","v":" 6.1.1"},{"$f":"'BNB-System'!D213","v":"Risiken am Mikrostandort"},{"$f":"'BNB-System'!E213","v":100},null,null,null,null,null,{"$f":"'BNB-System'!G213","v":"--"},{"$f":"H239*'BNB-System'!F213/'BNB-System'!H$210","v":0}]
[null,{"$f":"'BNB-System'!B214","v":"BN_2011"},{"$f":"'BNB-System'!C214","v":" 6.1.2"},{"$f":"'BNB-System'!D214","v":"Verhältnisse am Mikrostandort"},{"$f":"'BNB-System'!E214","v":100},null,null,null,null,null,{"$f":"'BNB-System'!G214","v":"--"},{"$f":"H240*'BNB-System'!F214/'BNB-System'!H$210","v":0}]
[null,{"$f":"'BNB-System'!B215","v":"BN_2011"},{"$f":"'BNB-System'!C215","v":" 6.1.3"},{"$f":"'BNB-System'!D215","v":"Quartiersmerkmale"},{"$f":"'BNB-System'!E215","v":100},null,null,null,null,null,{"$f":"'BNB-System'!G215","v":"--"},{"$f":"H241*'BNB-System'!F215/'BNB-System'!H$210","v":0}]
[null,{"$f":"'BNB-System'!B216","v":"BN_2011"},{"$f":"'BNB-System'!C216","v":" 6.1.4"},{"$f":"'BNB-System'!D216","v":"Verkehrsanbindung"},{"$f":"'BNB-System'!E216","v":100},null,null,null,null,null,{"$f":"'BNB-System'!G216","v":"--"},{"$f":"H242*'BNB-System'!F216/'BNB-System'!H$210","v":0}]
[null,{"$f":"'BNB-System'!B217","v":"BN_2011"},{"$f":"'BNB-System'!C217","v":" 6.1.5"},{"$f":"'BNB-System'!D217","v":"Nähe zu nutzungsrelevanten Einrichtungen"},{"$f":"'BNB-System'!E217","v":100},null,null,null,null,null,{"$f":"'BNB-System'!G217","v":"--"},{"$f":"H243*'BNB-System'!F217/'BNB-System'!H$210","v":0}]
[null,{"$f":"'BNB-System'!B218","v":"BN_2011"},{"$f":"'BNB-System'!C218","v":" 6.1.6"},{"$f":"'BNB-System'!D218","v":"Anliegende Medien / Erschließung"},{"$f":"'BNB-System'!E218","v":100},null,null,null,null,null,{"$f":"'BNB-System'!G218","v":"--"},{"$f":"H244*'BNB-System'!F218/'BNB-System'!H$210","v":0}]

{"sheet":"BNB-System","index":1,"n_rows":218,"n_cols":9,"rows_kept":218,"cut":false,"hidden":false,"merged":[[5,7,7,8],[9,1,9,3],[31,1,31,3],[105,2,105,3],[86,2,86,3],[40,2,40,3],[5,5,7,5],[5,6,7,6],[35,2,35,3],[33,2,33,3],[21,2,21,3],[11,2,11,3],[38,1,38,3],[121,1,121,3],[148,1,148,3],[209,1,209,3],[211,2,211,3],[197,2,197,3],[150,2,150,3],[123,2,123,3]]}
[]
[null,"Bewertungssystem Nachhaltiges Bauen (BNB) - Systemvariante Büro- und Verwaltungsgebäude"]
[null,"BNB-Modul Komplettmodernisierung (BNB_BK) - Version 2013_3 - Gewichtung und Bedeutungsfaktoren"]
[]
[null,"BNB-Modul Komplettmodernisierung"]
[null,"Nachhaltigkeitskriterien",null,null,"Zielwert","Bedeutungsfaktor","Gewichtung Einzelkriterien\nGesamtbewertung","Gewichtung Hauptkriteriengruppen Gesamtbewertung"]
[null,null,null,null,"Punktzahl"]
[null,null,null,null,"Maximum"]
[]
[null,"Ökologische Qualität",null,null,null,null,null,{"$f":"SUM(H13:H28)","v":2000},0.22500000000000001]
[]
[null,null,"Wirkungen auf die globale und lokale  Umwelt"]
[null,"BK"," 1.1.1","Treibhauspotenzial (GWP)",100,3,{"$f":"H13/$H10*I10","v":3.3750000000000002E-2},{"$f":"E13*F13","v":300}]
[null,"BK"," 1.1.2","Ozonschichtabbaupotenzial (ODP)",100,1,{"$f":"H14/H10*I10","v":1.1250000000000001E-2},100]
[null,"BK"," 1.1.3","Ozonbildungspotenzial (POCP)",100,1,{"$f":"H15/H10*I10","v":1.1250000000000001E-2},100]
[null,"BK"," 1.1.4","Versauerungspotenzial (AP)",100,1,{"$f":"H16/H10*I10","v":1.1250000000000001E-2},100]
[null,"BK"," 1.1.5","Überdüngungspotenzial (EP)",100,1,{"$f":"H17/H10*I10","v":1.1250000000000001E-2},100]
[null,"BK"," 1.1.6","Risiken für die lokale Umwelt",{"$f":"IF(SUM(E19:E20)>100,100,SUM(E19:E20))","v":100},3,{"$f":"H18/H10*I10","v":3.3750000000000002E-2},300]
[null,null,null,"Risiken aus der Neusubstanz",50]
[null,null,null,"Risiken aus der Altsubstanz",50]
[null,"BK"," 1.1.7","Nachhaltige Materialgewinnung / Holz",100,1,{"$f":"H21/H10*I10","v":1.1250000000000001E-2},100]
[null,null,"Ressourceninanspruchnahme"]
[null,"BK"," 1.2.1","Primärenergiebedarf nicht erneuerbar (PEne)",100,3,{"$f":"H23/$H10*I10","v":3.3750000000000002E-2},{"$f":"E23*F23","v":300}]
[null,"BK"," 1.2.2","Gesamtprimärenergiebedarf (PEges) u. Anteil erneuerbare Primärenergie (PEe)",{"$f":"IF(SUM(E25:E26)>100,100,SUM(E25:E26))","v":100},2,{"$f":"H24/$H$10*$I$10","v":2.2500000000000003E-2},{"$f":"E24*F24","v":200}]
[null,null,null,"Gesamtenergiebedarf",100]
[null,null,null,"Anteil erneuerbarer Primärenergie",50]
[null,"BN_2011","1.2.3","Trinkwasserbedarf und Abwasseraufkommen",100,2,{"$f":"H27/H10*I10","v":2.2500000000000003E-2},{"$f":"E27*F27","v":200}]
[null,"BK"," 1.2.4","Flächeninanspruchnahme",{"$f":"IF(SUM(E29:E30)>100,100,SUM(E29:E30))","v":100},2,{"$f":"H28/$H$10*$I$10","v":2.2500000000000003E-2},{"$f":"E28*F28","v":200}]
[null,null,null,"Veränderung der Flächeninanspruchnahme ",100]
[null,null,null,"Ausgleichsmaßnahmen und Flächenrecycling",40]
[]
[null,"Ökonomische Qualität",null,null,null,null,null,{"$f":"SUM(H35:H37)","v":500},0.22500000000000001]
[]
[null,null,"Lebenszykluskosten"]
[null,"BK"," 2.1.1","Gebäudebezogene Kosten im Lebenszyklus",100,3,{"$f":"H35/$H32*I32","v":0.13500000000000001},{"$f":"E35*F35","v":300}]
[null,null,"Wertentwicklung"]
[null,"BN_2011"," 2.2.1","Drittverwendungsfähigkeit",100,2,{"$f":"H37/$H$32*$I$32","v":9.0000000000000011E-2},{"$f":"E37*F37","v":200}]
[]
[null,"Soziokulturelle und funktionale Qualität",null,null,null,null,null,{"$f":"SUM(H42:H120)","v":2800},0.22500000000000001]
[]
[null,null,"Gesundheit, Behaglichkeit und Nutzerzufriedenheit"]
[null,"BN_2011"," 3.1.1","Thermischer Komfort im Winter",{"$f":"IF(SUM(E43:E46)>100,100,SUM(E43:E46))","v":100},2,{"$f":"H42/$H$39*$I$39","v":1.607142857142857E-2},{"$f":"E42*F42","v":200}]
[null,null,null,"Operative Temperatur",70]
[null,null,null,"Zugluft",10]
[null,null,null,"Stahlungstemperaturasymmetrie und Fußbodentemperatur",10]
[null,null,null,"Relative Luftfeuchte",10]
[null,"BN_2011"," 3.1.2","Thermischer Komfort im Sommer",{"$f":"IF(SUM(E48:E51)>100,100,SUM(E48:E51))","v":100},3,{"$f":"H47/$H$39*$I$39","v":2.4107142857142855E-2},{"$f":"E47*F47","v":300}]
[null,null,null,"Operative Temperatur",70]
[null,null,null,"Zugluft",10]
[null,null,null,"Stahlungstemperaturasymmetrie und Fußbodentemperatur",10]
[null,null,null,"Relative Luftfeuchte",10]
[null,"BN_2011","3.1.3","Innenraumhygiene",{"$f":"IF(SUM(E53:E54)>100,100,SUM(E53:E54))","v":100},3,{"$f":"H52/$H$39*$I$39","v":2.4107142857142855E-2},{"$f":"E52*F52","v":300}]
[null,null,null,"Flüchtige organische Stoffe (VOC) und Formaldehyd",50]
[null,null,null,"Personenbezogene Lüftungsrate",50]
[null,"BN_2011"," 3.1.4","Akustischer Komfort",{"$f":"IF(SUM(E56:E63)>100,100,SUM(E56:E63))","v":100},1,{"$f":"H55/$H$39*$I$39","v":8.0357142857142849E-3},{"$f":"E55*F55","v":100}]
[null,null,null,"Einzel- und Mehrpersonenbüros bis 40 m²",100]
[null,null,null,"NF Einzel- und Mehrpersonenbüros bis 40 m² "]
[null,null,null,"Mehrpersonenbüros",100]
[null,null,null,"NF Mehrpersonenbüros"]
[null,null,null,"Besprechungsräume",100]
[null,null,null,"NF Besprechungsräume"]
[null,null,null,"Kantinen über 50 m²",100]
[null,null,null,"NF Kantinen über 50 m²"]
[null,"BN_2011"," 3.1.5","Visueller Komfort",{"$f":"IF(SUM(E65:E71)>100,100,SUM(E65:E71))","v":100},3,{"$f":"H64/$H$39*$I$39","v":2.4107142857142855E-2},{"$f":"E64*F64","v":300}]
[null,null,null,"Tageslichtverfügbarkeit Gesamtgebäude",15]
[null,null,null,"Tageslichtverfügbarkeit ständige Arbeitsplätze",15]
[null,null,null,"Nachweis de Sichtverbindung außen",15]
[null,null,null,"Blendfreiheit Tageslicht",15]
[null,null,null,"Blendfreiheit  Kunstlicht",10]
[null,null,null,"Lichtverteilung",15]
[null,null,null,"Farbwiedergabe",15]
[null,"BN_2011"," 3.1.6","Einflussnahme des Nutzers",{"$f":"IF(SUM(E73:E80)>100,100,SUM(E73:E80))","v":100},2,{"$f":"H72/$H$39*$I$39","v":1.607142857142857E-2},{"$f":"E72*F72","v":200}]
[null,null,null,"Lüftung",10]
[null,null,null,"Sonnenschutz",10]
[null,null,null,"Blendschutz",10]
[null,null,null,"Temperaturen während der Heizperiode",10]
[null,null,null,"Temperaturen außerhalb der Heizperiode",15]
[null,null,null,"Steuerung von Tageslicht",15]
[null,null,null,"Steuerung von  Kunstlicht",15]
[null,null,null,"Bedienfreundlichkeit",15]
[null,"BN_2011"," 3.1.7","Aufenthaltsmerkmale im Außenraum",{"$f":"IF(SUM(E82:E83)>100,100,SUM(E82:E83))","v":100},1,{"$f":"H81/$H$39*$I$39","v":8.0357142857142849E-3},{"$f":"E81*F81","v":100}]
[null,null,null,"Anzahl der Sitzmöglichkeiten im Außenbereich",40]
[null,null,null," Ausstattungsmerkmale",100]
[null,"BN_2011"," 3.1.8","Sicherheit und Störfallrisiken",{"$f":"IF(SUM(E85:E86)>100,100,SUM(E85:E86))","v":100},1,{"$f":"H84/$H$39*$I$39","v":8.0357142857142849E-3},{"$f":"E84*F84","v":100}]
[null,null,null,"Subjektives Sicherheitsempfinden und Schutz vor Übergriffen",50]
[null,null,null,"Reduktion des Schadensausmaßes im Fall von Schadensereignissen",50]
[null,null,"Funktionalität"]
[null,"BN_2011"," 3.2.1","Barrierefreiheit",100,2,{"$f":"H88/$H$39*$I$39","v":1.607142857142857E-2},{"$f":"E88*F88","v":200}]
[null,"BN_2011"," 3.2.2","Flächeneffizienz",100,1,{"$f":"H89/$H$39*$I$39","v":8.0357142857142849E-3},{"$f":"E89*F89","v":100}]
[null,"BK"," 3.2.3","Umnutzungsfähigkeit",{"$f":"IF(SUM(E91:E96)>100,100,SUM(E91:E96))","v":100},2,{"$f":"H90/$H$39*$I$39","v":1.607142857142857E-2},{"$f":"E90*F90","v":200}]
[null,null,null,"Lichte Raumhöhe",15]
[null,null,null,"Gebäudetiefe",15]
[null,null,null,"Vertikale Erschließung",15]
[null,null,null,"Grundrisse",25]
[null,null,null,"Konstruktion",20]
[null,null,null,"Technische Ausstattung",10]
[null,"BN_2011"," 3.2.4","Zugänglichkeit",{"$f":"IF(SUM(E98:E102)>100,100,SUM(E98:E102))","v":100},2,{"$f":"H97/$H$39*$I$39","v":1.607142857142857E-2},{"$f":"E97*F97","v":200}]
[null,null,null,"Grundsätzliche Zugänglichkeit des Gebäudes",25]
[null,null,null,"Öffnung der Außenanlagen für die Öffentlichkeit",25]
[null,null,null,"Öffnung gebäudeinterner Einrichtungen für die Öffentlichkeit",25]
[null,null,null,"Möglichkeit der Anmietung von Räumlichkeiten ",15]
[null,null,null,"Nutzungsvielfalt der öffentlich zugänglichen Bereiche",10]
[null,"BN_2011"," 3.2.5","Fahrradkomfort",{"$f":"IF(SUM(E104:E105)>100,100,SUM(E104:E105))","v":100},1,{"$f":"H103/$H$39*$I$39","v":8.0357142857142849E-3},{"$f":"E103*F103","v":100}]
[null,null,null,"Anzahl der Fahrradstellplätze",50]
[null,null,null,"Qualitative Anfoorderungen",50]
[null,null,"Sicherung der Gestaltungsqualität"]
[null,"BK"," 3.3.1","Gestalterische und städtebauliche Qualität",{"$f":"IF(SUM(E108:E115)>100,100,SUM(E108:E115))","v":100},3,{"$f":"H107/$H$39*$I$39","v":2.4107142857142855E-2},{"$f":"E107*F107","v":300}]
[null,null,null,"Fortentwicklung der gestalterischen und städtebaulichen Qualität des Bestandsgebäudes",40]
[null,null,null,"Wettbewerbsverfahren",35]
[null,null,null,"Ausführung des Entwurfs eines der Preisträger",20]
[null,null,null,"Beauftragung des Planungsteams",5]
[null,null,null,"Auszeichnung mit einem Architekturpreis",60]
[null,null,null,"Unabhängiges Expertengremium",40]
[null,null,null,"Sonderfall Mindestanforderung",5]
[null,null,null,"Denkmalpflege und Denkmalschutz",100]
[null,"BK"," 3.3.2","Kunst am Bau ",{"$f":"IF(SUM(E117:E120)>100,100,SUM(E117:E120))","v":100},1,{"$f":"H116/$H$39*$I$39","v":8.0357142857142849E-3},{"$f":"E116*F116","v":100}]
[null,null,null,"Mindestanforderung",10]
[null,null,null,"Bereitstellung von Mitteln im Rahmen der Bauaufgabe",30]
[null,null,null,"Umsetzung des BMVBS-Leitfadens Kunst am Bau",40]
[null,null,null,"Öffentlichkeitsarbeit, Rezeption  der Kunst am Bau",20]
[]
[null,"Technische Qualität",null,null,null,null,null,{"$f":"SUM(H125:H147)","v":800},0.22500000000000001]
[]
[null,null,"technische Ausführung"]
[null,"BN_2011"," 4.1.1","Schallschutz ",{"$f":"IF(SUM(E126:E129)>100,100,SUM(E126:E129))","v":100},2,{"$f":"H125/$H$122*$I$122","v":5.6250000000000001E-2},{"$f":"E125*F125","v":200}]
[null,null,null,"Luftschallschutz gegen Außenlärm",20]
[null,null,null,"Luftschallschutz gegenüber fremden Arbeitsräumen und eigenen Arbeitsbereichen",30]
[null,null,null,"Trittschallschutz gegenüber fremden Arbeitsräumen und eigenen Arbeitsbereichen",30]
[null,null,null,"Schallschutz gegenüber haustechnischen Anlagen",20]
[null,"BK"," 4.1.2","Wärme- und Tauwasserschutz ",{"$f":"IF(SUM(E131:E136)>100,100,SUM(E131:E136))","v":100},2,{"$f":"H130/$H$122*$I$122","v":5.6250000000000001E-2},{"$f":"E130*F130","v":200}]
[null,null,null,"Mittlere Wärmeduchgangskoeffizienten",30]
[null,null,null,"Wärmebrückenzuschlag",15]
[null,null,null,"Klassen der Luftdurchlässigkeit (Fugendurchlässigkeit)",15]
[null,null,null,"Tauwasserbildung",10]
[null,null,null,"Luftwechsel",15]
[null,null,null,"Sonneneintragswert",15]
[null,"BN_2011"," 4.1.3","Reinigung und Instandhaltung",{"$f":"IF(SUM(E138:E146)>100,100,SUM(E138:E146))","v":100},2,{"$f":"H137/$H$122*$I$122","v":5.6250000000000001E-2},{"$f":"E137*F137","v":200}]
[null,null,null,"Tragkonstruktion",15]
[null,null,null,"Zugänglichkeit der Außenglasflächen",15]
[null,null,null,"Außenbauteile",9]
[null,null,null,"Bodenbelag",9]
[null,null,null,"Schmutzfangzone",9]
[null,null,null,"Fußbodenleisten",9]
[null,null,null,"Hindernisfreie Grundrissgestaltung",9]
[null,null,null,"Einbauten",10]
[null,null,null,"Zugänglichkeit der Innenglasflächen ",15]
[null,"BN_2011"," 4.1.4","Rückbau, Trennung und Verwertung",100,2,{"$f":"H147/$H$122*$I$122","v":5.6250000000000001E-2},{"$f":"E147*F147","v":200}]
[]
[null,"Prozessqualität",null,null,null,null,null,{"$f":"SUM(H152:H207)","v":2500},0.1]
[]
[null,null,"Planung"]
[null,"BN_2011"," 5.1.1","Projektvorbereitung",{"$f":"IF(SUM(E153:E155)>100,100,SUM(E153:E155))","v":100},3,{"$f":"H152/$H$149*$I$149","v":1.2E-2},{"$f":"E152*F152","v":300}]
[null,null,null,"Bedarfsplanung oder vergleichbare Planung",35]
[null,null,null,"Zielvereinbarung",35]
[null,null,null,"Architektenwettbewerb",30]
[null,"BN_2011"," 5.1.2","Integrale Planung",{"$f":"IF(SUM(E157:E161)>100,100,SUM(E157:E161))","v":100},3,{"$f":"H156/$H$149*$I$149","v":1.2E-2},{"$f":"E156*F156","v":300}]
[null,null,null,"Integrales Planungsteam",30]
[null,null,null,"Qualifikation des Planungsteams",20]
[null,null,null,"Integraler Planungsprozess",20]
[null,null,null,"Nutzerbeteiligung",20]
[null,null,null,"Öffentlichkeitsbeteiligung",10]
[null,"BK"," 5.1.3","Komplexität und Optimierung der Planung",{"$f":"IF(SUM(E163:E176)>100,100,SUM(E163:E176))","v":100},3,{"$f":"H162/$H$149*$I$149","v":1.2E-2},{"$f":"E162*F162","v":300}]
[null,null,null,"SiGe-Plan",10]
[null,null,null,"Energiekonzept",10]
[null,null,null,"Messkonzept",10]
[null,null,null,"Wasserkonzept",10]
[null,null,null,"Ver- und Entsiegelungskonzept",10]
[null,null,null,"Abfallkonzept",5]
[null,null,null,"Konzept zur Vermeidung von Umwelt- und Gesundheitsrisiken aus Bauprodukten",10]
[null,null,null,"Lüftungskonzept",10]
[null,null,null,"Tages- / Kunstlichtoptimierung",10]
[null,null,null,"Konzept zur Sicherung der Reinigungs- und Instandhaltungsfreundlichkeit",10]
[null,null,null,"Konzept zur Unterstützung der Umbaubarkeit, Rückbaubarkeit und Recyclingfreundlichkeit",10]
[null,null,null,"Sonstige Konzepte zum Nachhaltigen Bauen",20]
[null,null,null,"Prüfung der Planungsunterlagen durch unabhängige Dritte",5]
[null,null,null,"Durchführung von Variantenvergleichen",10]
[null,"BN_2011"," 5.1.4","Ausschreibung und Vergabe",100,2,{"$f":"H177/$H$149*$I$149","v":8.0000000000000002E-3},{"$f":"E177*F177","v":200}]
[null,"BN_2011"," 5.1.5","Vorraussetzungen für eine optimale Bewirtschaftung",{"$f":"IF(SUM(E179:E182)>100,100,SUM(E179:E182))","v":100},2,{"$f":"H178/$H$149*$I$149","v":8.0000000000000002E-3},{"$f":"E178*F178","v":200}]
[null,null,null,"Erstellung einer Objektdokumentation / Gebäudepass",25]
[null,null,null,"Erstellung von Wartungs-, Inspektions-, Betriebs-, und Pflegeanleitungen",25]
[null,null,null,"Anpassung der Pläne und Berechnungen an das realisierte Gebäude",25]
[null,null,null,"Erstellung eines Nutzerhandbuches",25]
[null,"BK"," 5.1.6","Bestandsanalyse",{"$f":"IF(SUM(E184:E192)>100,100,SUM(E184:E192))","v":100},3,{"$f":"H183/$H$149*$I$149","v":1.2E-2},{"$f":"E183*F183","v":300}]
[null,null,null,"Bestandsaufnahme Geometrie",10]
[null,null,null,"Bestandsaufnahme Baukonstruktion und Baustoffe",20]
[null,null,null,"Bestandsaufnahme Haustechnik",10]
[null,null,null,"Bestandsaufnahme Bau- und Nutzungsgeschichte",5]
[null,null,null,"Bestandsaufnahme Exposition",5]
[null,null,null,"Baudiagnose Tragwerk",15]
[null,null,null,"Baudiagnose Energetische Qualität",15]
[null,null,null,"Baudiagnose Schadstoffe",10]
[null,null,null,"Baudiagnose Feuchte- und Salzbelastungen",10]
[null,"BK"," 5.1.7","Rückbaumaßnahmen",{"$f":"IF(SUM(E194:E197)>100,100,SUM(E194:E197))","v":100},1,{"$f":"H193/$H$149*$I$149","v":4.0000000000000001E-3},{"$f":"E193*F193","v":100}]
[null,null,null,"Technische Arbeitsschutzbedingungen",25]
[null,null,null,"Planung des Rückbaus",25]
[null,null,null,"Selektiver Rückbau",25]
[null,null,null,"Prüfen auf Abfalltrennung und Entsorgung",25]
[null,null,"Bauausführung"]
[null,"BN_2011"," 5.2.1","Baustelle / Bauprozess",{"$f":"IF(SUM(E200:E203)>100,100,SUM(E200:E203))","v":100},2,{"$f":"H199/$H$149*$I$149","v":8.0000000000000002E-3},{"$f":"E199*F199","v":200}]
[null,null,null,"Abfallarme Baustelle",25]
[null,null,null,"Lärmarme Baustelle",25]
[null,null,null,"Staubarme Baustelle",25]
[null,null,null,"Bodenschutz auf der Baustelle",25]
[null,"BN_2011"," 5.2.2","Qualitätssicherung der Bauausführung",{"$f":"IF(SUM(E205:E207)>100,100,SUM(E205:E207))","v":100},3,{"$f":"H204/$H$149*$I$149","v":1.2E-2},{"$f":"E204*F204","v":300}]
[null,null,null,"Dokumentation der verwendeten Materialien, Hilfsstoffe und Sicherheitsdatenblätter",50]
[null,null,null,"Messungen zur Qualitätskontrolle",50]
[null,"BN_2011"," 5.2.3","Systematische Inbetriebnahme",100,3,{"$f":"H207/$H$149*$I$149","v":1.2E-2},{"$f":"E207*F207","v":300}]
[]
[]
[null,"Standortmerkmale",null,null,null,null,null,{"$f":"SUM(H213:H218)","v":1300}]
[]
[null,null,"Standortmerkmale"]
[null,"BN_2011"," 6.1.1","Risiken am Mikrostandort",100,2,"--",{"$f":"E213*F213","v":200}]
[null,"BN_2011"," 6.1.2","Verhältnisse am Mikrostandort",100,2,"--",200]
[null,"BN_2011"," 6.1.3","Quartiersmerkmale",100,2,"--",200]
[null,"BN_2011"," 6.1.4","Verkehrsanbindung",100,3,"--",300]
[null,"BN_2011"," 6.1.5","Nähe zu nutzungsrelevanten Einrichtungen",100,2,"--",200]
[null,"BN_2011"," 6.1.6","Anliegende Medien / Erschließung",100,2,"--",200]

{"sheet":"Gültigkeitslisten","index":2,"n_rows":3,"n_cols":2,"rows_kept":3,"cut":false,"hidden":true,"merged":[]}
[null,"Erfüllt / nicht erfüllt"]
[null,"o"]
[null,"x"]